[Event "Titled Tuesday Blitz April 25 Late 2023"]
[White "Pinto, Daniel"]
[Black "Leschinsky, Gary"]
[WhiteFideId "3303144"]
[BlackFideId "30951321"]
[WhiteElo "2145"]
[BlackElo "1855"]
[Result "1-0"]
[Round "05"]
[TimeControl "180+2"]
[Date "2023.04.25"]
[WhiteClock "0:00:10"]
[BlackClock "0:00:08"]

1. Nf3 {[%clk 0:02:55]}  c6 {[%clk 0:03:00]} 2. g3 {[%clk 0:02:55]}  d5 {[%clk 0:03:01]} 3. Bg2 {[%clk 0:02:56]}  Nf6 {[%clk 0:03:00]} 4. O-O {[%clk 0:02:56]}  Bg4 {[%clk 0:03:01]} 5. b3 {[%clk 0:02:55]}  Nbd7 {[%clk 0:03:00]} 6. Bb2 {[%clk 0:02:55]}  e6 {[%clk 0:03:00]} 7. d3 {[%clk 0:02:56]}  Bd6 {[%clk 0:02:58]} 8. Nbd2 {[%clk 0:02:56]}  O-O {[%clk 0:02:58]} 9. e4 {[%clk 0:02:56]}  Qe7 {[%clk 0:02:44]} 10. h3 {[%clk 0:02:53]}  Bxf3 {[%clk 0:02:43]} 11. Qxf3 {[%clk 0:02:44]}  a5 {[%clk 0:02:41]} 12. Qe2 {[%clk 0:02:24]}  e5 {[%clk 0:02:33]} 13. exd5 {[%clk 0:02:23]}  cxd5 {[%clk 0:02:34]} 14. c4 {[%clk 0:02:18]}  a4 {[%clk 0:02:32]} 15. bxa4 {[%clk 0:02:02]}  Nc5 {[%clk 0:02:17]} 16. cxd5 {[%clk 0:01:57]}  Nxa4 {[%clk 0:02:13]} 17. Rab1 {[%clk 0:01:57]}  b5 {[%clk 0:02:09]} 18. Rfe1 {[%clk 0:01:52]}  Nd7 {[%clk 0:01:46]} 19. d4 {[%clk 0:01:45]}  f6 {[%clk 0:01:28]} 20. Nb3 {[%clk 0:01:33]}  Nxb2 {[%clk 0:01:05]} 21. Rxb2 {[%clk 0:01:31]}  Rfe8 {[%clk 0:01:05]} 22. Qxb5 {[%clk 0:01:28]}  Rab8 {[%clk 0:01:02]} 23. Qd3 {[%clk 0:01:21]}  Qd8 {[%clk 0:00:41]} 24. Rbe2 {[%clk 0:01:14]}  Rb4 {[%clk 0:00:33]} 25. h4 {[%clk 0:01:02]}  Re7 {[%clk 0:00:29]} 26. Bh3 {[%clk 0:00:58]}  exd4 {[%clk 0:00:28]} 27. Rxe7 {[%clk 0:00:54]}  Bxe7 {[%clk 0:00:29]} 28. Nxd4 {[%clk 0:00:53]}  Ne5 {[%clk 0:00:16]} 29. Rxe5 {[%clk 0:00:37]}  fxe5 {[%clk 0:00:17]} 30. Nc6 {[%clk 0:00:37]}  Qd6 {[%clk 0:00:15]} 31. Be6+ {[%clk 0:00:34]}  Kh8 {[%clk 0:00:13]} 32. Nxb4 {[%clk 0:00:23]}  Qxb4 {[%clk 0:00:14]} 33. Qc2 {[%clk 0:00:15]}  g6 {[%clk 0:00:13]} 34. Qc8+ {[%clk 0:00:14]}  Kg7 {[%clk 0:00:13]} 35. Qc2 {[%clk 0:00:15]}  Bc5 {[%clk 0:00:11]} 36. Kg2 {[%clk 0:00:15]}  Bd4 {[%clk 0:00:10]} 37. Qe2 {[%clk 0:00:15]}  Qa3 {[%clk 0:00:10]} 38. Qc2 {[%clk 0:00:16]}  Qe7 {[%clk 0:00:08]} 39. a4 {[%clk 0:00:15]}  Qa7 {[%clk 0:00:07]} 40. Qa2 {[%clk 0:00:15]}  Kf6 {[%clk 0:00:07]} 41. a5 {[%clk 0:00:15]}  Qa6 {[%clk 0:00:07]} 42. Bd7 {[%clk 0:00:14]}  Bc3 {[%clk 0:00:07]} 43. Bc6 {[%clk 0:00:14]}  Qxa5 {[%clk 0:00:07]} 44. Qe2 {[%clk 0:00:11]}  Bd4 {[%clk 0:00:07]} 45. Qf3+ {[%clk 0:00:12]}  Kg7 {[%clk 0:00:07]} 46. d6 {[%clk 0:00:12]}  Qd8 {[%clk 0:00:08]} 47. d7 {[%clk 0:00:12]}  Bc5 {[%clk 0:00:08]} 48. Qd5 {[%clk 0:00:12]}  Be7 {[%clk 0:00:05]} 49. Qe6 {[%clk 0:00:12]}  Bf6 {[%clk 0:00:06]} 50. Bd5 {[%clk 0:00:13]}  Qe7 {[%clk 0:00:06]} 51. Qg8+ {[%clk 0:00:12]}  Kh6 {[%clk 0:00:07]} 52. Qe8 {[%clk 0:00:12]}  Qd8 {[%clk 0:00:07]} 53. Kh3 {[%clk 0:00:10]}  Qe7 {[%clk 0:00:07]} 54. f3 {[%clk 0:00:08]}  e4 {[%clk 0:00:08]} 55. fxe4 {[%clk 0:00:07]}  Qd8 {[%clk 0:00:08]} 56. g4 {[%clk 0:00:05]}  Kg7 {[%clk 0:00:07]} 57. g5 {[%clk 0:00:04]}  Be7 {[%clk 0:00:07]} 58. Qf7+ {[%clk 0:00:04]}  Kh8 {[%clk 0:00:06]} 59. Qe8+ {[%clk 0:00:04]}  Kg7 {[%clk 0:00:06]} 60. e5 {[%clk 0:00:04]}  h5 {[%clk 0:00:04]} 61. Kg3 {[%clk 0:00:02]}  Kh7 {[%clk 0:00:01]} 62. Qf7+ {[%clk 0:00:02]}  Kh8 {[%clk 0:00:02]} 63. Qe8+ {[%clk 0:00:02]}  Kh7 {[%clk 0:00:02]} 64. Kf4 {[%clk 0:00:01]}  Kg7 {[%clk 0:00:02]} 65. Qf7+ {[%clk 0:00:02]}  Kh8 {[%clk 0:00:02]} 66. Qe8+ {[%clk 0:00:02]}  Kg7 {[%clk 0:00:02]} 67. Be6 {[%clk 0:00:03]}  Kh7 {[%clk 0:00:01]} 68. Qf7+ {[%clk 0:00:03]}  Kh8 {[%clk 0:00:02]} 69. Qxg6 {[%clk 0:00:04]}  Qf8+ {[%clk 0:00:02]} 70. Qf7 {[%clk 0:00:05]}  Qxf7+ {[%clk 0:00:02]} 71. Bxf7 {[%clk 0:00:06]}  Kg7 {[%clk 0:00:02]} 72. Bxh5 {[%clk 0:00:06]}  Bd8 {[%clk 0:00:03]} 73. Kf5 {[%clk 0:00:07]}  Kf8 {[%clk 0:00:04]} 74. e6 {[%clk 0:00:07]}  Ke7 {[%clk 0:00:05]} 75. g6 {[%clk 0:00:08]}  Bc7 {[%clk 0:00:06]} 76. g7 {[%clk 0:00:08]}  Kd6 {[%clk 0:00:06]} 77. g8=Q {[%clk 0:00:09]}  Kc6 {[%clk 0:00:07]} 78. Qf7 {[%clk 0:00:10]}  Bd6 {[%clk 0:00:08]} 1-0


[Site "https://www.chess.com"]

[Event "Titled Tuesday Blitz April 25 Late 2023"]
[White "Zakarian, David"]
[Black "Kraus, Tomas"]
[WhiteFideId "13301276"]
[BlackFideId "331708"]
[WhiteElo "2306"]
[BlackElo "2389"]
[Result "0-1"]
[Round "05"]
[TimeControl "180+2"]
[Date "2023.04.25"]
[WhiteClock "0:00:11"]
[BlackClock "0:00:08"]

1. e4 {[%clk 0:02:52]}  c5 {[%clk 0:02:48]} 2. Nf3 {[%clk 0:02:52]}  d6 {[%clk 0:02:48]} 3. Bb5+ {[%clk 0:02:51]}  Nd7 {[%clk 0:02:45]} 4. O-O {[%clk 0:02:50]}  Nf6 {[%clk 0:02:36]} 5. Re1 {[%clk 0:02:49]}  a6 {[%clk 0:02:36]} 6. Bf1 {[%clk 0:02:48]}  b5 {[%clk 0:02:34]} 7. a4 {[%clk 0:02:46]}  b4 {[%clk 0:02:34]} 8. c3 {[%clk 0:02:46]}  Bb7 {[%clk 0:02:30]} 9. d3 {[%clk 0:02:43]}  g6 {[%clk 0:02:28]} 10. Nbd2 {[%clk 0:02:43]}  Bg7 {[%clk 0:02:27]} 11. Nc4 {[%clk 0:02:41]}  O-O {[%clk 0:02:27]} 12. Bd2 {[%clk 0:02:42]}  a5 {[%clk 0:02:27]} 13. Qc1 {[%clk 0:02:41]}  Re8 {[%clk 0:02:23]} 14. Bh6 {[%clk 0:02:41]}  Bh8 {[%clk 0:02:23]} 15. h3 {[%clk 0:02:42]}  Qc7 {[%clk 0:02:19]} 16. Ne3 {[%clk 0:02:21]}  e5 {[%clk 0:02:02]} 17. cxb4 {[%clk 0:02:05]}  axb4 {[%clk 0:01:59]} 18. b3 {[%clk 0:02:06]}  Nb8 {[%clk 0:01:49]} 19. Nc4 {[%clk 0:01:58]}  Nc6 {[%clk 0:01:44]} 20. Qg5 {[%clk 0:01:51]}  Qe7 {[%clk 0:01:36]} 21. Qh4 {[%clk 0:01:48]}  Nd4 {[%clk 0:01:28]} 22. Nxd4 {[%clk 0:01:44]}  cxd4 {[%clk 0:01:28]} 23. f4 {[%clk 0:01:39]}  Ba6 {[%clk 0:01:18]} 24. Nb6 {[%clk 0:01:30]}  Rab8 {[%clk 0:01:16]} 25. a5 {[%clk 0:01:29]}  Nd7 {[%clk 0:01:08]} 26. Qxe7 {[%clk 0:01:21]}  Rxe7 {[%clk 0:01:08]} 27. Nd5 {[%clk 0:01:20]}  Ree8 {[%clk 0:01:00]} 28. Rec1 {[%clk 0:01:20]}  Nc5 {[%clk 0:00:54]} 29. Rxc5 {[%clk 0:01:11]}  dxc5 {[%clk 0:00:55]} 30. Nc7 {[%clk 0:01:10]}  Re6 {[%clk 0:00:43]} 31. Nxe6 {[%clk 0:01:09]}  fxe6 {[%clk 0:00:43]} 32. Bg5 {[%clk 0:01:04]}  exf4 {[%clk 0:00:31]} 33. Bxf4 {[%clk 0:01:05]}  e5 {[%clk 0:00:32]} 34. Bg5 {[%clk 0:01:04]}  Kf7 {[%clk 0:00:16]} 35. Kf2 {[%clk 0:01:01]}  Rf8 {[%clk 0:00:17]} 36. Ke2 {[%clk 0:01:00]}  Ke6 {[%clk 0:00:17]} 37. Bh4 {[%clk 0:00:52]}  Bf6 {[%clk 0:00:15]} 38. Bg3 {[%clk 0:00:49]}  Bg5 {[%clk 0:00:11]} 39. Ra2 {[%clk 0:00:45]}  Be3 {[%clk 0:00:09]} 40. Rc2 {[%clk 0:00:43]}  Kd6 {[%clk 0:00:08]} 41. Bh4 {[%clk 0:00:40]}  g5 {[%clk 0:00:09]} 42. Be1 {[%clk 0:00:39]}  h5 {[%clk 0:00:09]} 43. g3 {[%clk 0:00:37]}  Bc8 {[%clk 0:00:07]} 44. Bg2 {[%clk 0:00:37]}  Ba6 {[%clk 0:00:07]} 45. Bf3 {[%clk 0:00:36]}  Rh8 {[%clk 0:00:04]} 46. Bd2 {[%clk 0:00:26]}  Bxd2 {[%clk 0:00:02]} 47. Kxd2 {[%clk 0:00:27]}  g4 {[%clk 0:00:02]} 48. hxg4 {[%clk 0:00:21]}  hxg4 {[%clk 0:00:03]} 49. Bxg4 {[%clk 0:00:21]}  Rg8 {[%clk 0:00:03]} 50. Be2 {[%clk 0:00:20]}  Rxg3 {[%clk 0:00:03]} 51. Rc1 {[%clk 0:00:21]}  Rg2 {[%clk 0:00:01]} 52. Rf1 {[%clk 0:00:21]}  Kc6 {[%clk 0:00:02]} 53. Rf6+ {[%clk 0:00:21]}  Kb5 {[%clk 0:00:02]} 54. Re6 {[%clk 0:00:20]}  Rg5 {[%clk 0:00:02]} 55. Rb6+ {[%clk 0:00:15]}  Kxa5 {[%clk 0:00:02]} 56. Rb8 {[%clk 0:00:16]}  Bb5 {[%clk 0:00:02]} 57. Rb7 {[%clk 0:00:13]}  Ba6 {[%clk 0:00:02]} 58. Rb8 {[%clk 0:00:13]}  Rg7 {[%clk 0:00:02]} 59. Re8 {[%clk 0:00:12]}  Rg5 {[%clk 0:00:02]} 60. Re6 {[%clk 0:00:13]}  Kb5 {[%clk 0:00:01]} 61. Bf1 {[%clk 0:00:11]}  Bb7 {[%clk 0:00:02]} 62. Rd6 {[%clk 0:00:11]}  Bc6 {[%clk 0:00:01]} 63. Bh3 {[%clk 0:00:12]}  Rh5 {[%clk 0:00:01]} 64. Bc8 {[%clk 0:00:11]}  Rh2+ {[%clk 0:00:02]} 65. Kc1 {[%clk 0:00:11]}  Rh1+ {[%clk 0:00:02]} 66. Kd2 {[%clk 0:00:11]}  Rb1 {[%clk 0:00:01]} 67. Kc2 {[%clk 0:00:10]}  Ra1 {[%clk 0:00:02]} 68. Re6 {[%clk 0:00:11]}  Ra2+ {[%clk 0:00:02]} 69. Kb1 {[%clk 0:00:12]}  Ra3 {[%clk 0:00:02]} 70. Rxe5 {[%clk 0:00:12]}  Rxb3+ {[%clk 0:00:02]} 71. Kc2 {[%clk 0:00:13]}  Rc3+ {[%clk 0:00:03]} 72. Kd2 {[%clk 0:00:13]}  b3 {[%clk 0:00:03]} 73. Be6 {[%clk 0:00:13]}  b2 {[%clk 0:00:03]} 74. Ba2 {[%clk 0:00:14]}  Rc1 {[%clk 0:00:04]} 75. Re7 {[%clk 0:00:12]}  b1=Q {[%clk 0:00:04]} 76. Bxb1 {[%clk 0:00:13]}  Rxb1 {[%clk 0:00:04]} 77. Kc2 {[%clk 0:00:14]}  Re1 {[%clk 0:00:04]} 78. Re5 {[%clk 0:00:13]}  Re2+ {[%clk 0:00:04]} 79. Kd1 {[%clk 0:00:13]}  Re3 {[%clk 0:00:05]} 80. Kd2 {[%clk 0:00:14]}  Kb4 {[%clk 0:00:04]} 81. Re6 {[%clk 0:00:14]}  Bb5 {[%clk 0:00:05]} 82. e5 {[%clk 0:00:12]}  Rxd3+ {[%clk 0:00:05]} 83. Kc2 {[%clk 0:00:13]}  Re3 {[%clk 0:00:06]} 84. Re7 {[%clk 0:00:13]}  Ba4+ {[%clk 0:00:06]} 85. Kd2 {[%clk 0:00:13]}  Kc4 {[%clk 0:00:07]} 86. Ra7 {[%clk 0:00:12]}  Bb5 {[%clk 0:00:07]} 87. Re7 {[%clk 0:00:10]}  Kd5 {[%clk 0:00:07]} 88. Rb7 {[%clk 0:00:09]}  Bc4 {[%clk 0:00:08]} 89. Rc7 {[%clk 0:00:08]}  Rxe5 {[%clk 0:00:07]} 90. Kd1 {[%clk 0:00:09]}  Re3 {[%clk 0:00:07]} 91. Kd2 {[%clk 0:00:10]}  Re2+ {[%clk 0:00:07]} 92. Kd1 {[%clk 0:00:10]}  Rh2 {[%clk 0:00:08]} 93. Kc1 {[%clk 0:00:10]}  Bd3 {[%clk 0:00:08]} 94. Re7 {[%clk 0:00:10]}  c4 {[%clk 0:00:09]} 95. Kd1 {[%clk 0:00:11]}  c3 {[%clk 0:00:09]} 96. Rd7+ {[%clk 0:00:11]}  Kc6 {[%clk 0:00:08]} 97. Rd8 {[%clk 0:00:11]}  Rh1# {[%clk 0:00:08]} 0-1


[Site "https://www.chess.com"]

[Event "Titled Tuesday Blitz April 25 Late 2023"]
[White "D`Arruda, Ricardo D."]
[Black "Bulgurlu, Okan"]
[WhiteFideId "100692"]
[BlackFideId "6352316"]
[WhiteElo "2271"]
[BlackElo "1908"]
[Result "1-0"]
[Round "05"]
[TimeControl "180+2"]
[Date "2023.04.25"]
[WhiteClock "0:00:41"]
[BlackClock "0:00:03"]

1. d4 {[%clk 0:03:00]}  d5 {[%clk 0:02:57]} 2. Nf3 {[%clk 0:03:01]}  Nf6 {[%clk 0:02:55]} 3. c4 {[%clk 0:03:00]}  c6 {[%clk 0:02:54]} 4. Nc3 {[%clk 0:03:00]}  dxc4 {[%clk 0:02:54]} 5. a4 {[%clk 0:02:59]}  Bf5 {[%clk 0:02:54]} 6. e3 {[%clk 0:02:59]}  Nbd7 {[%clk 0:02:47]} 7. Bxc4 {[%clk 0:02:58]}  Qc7 {[%clk 0:02:36]} 8. O-O {[%clk 0:02:57]}  Bg6 {[%clk 0:02:30]} 9. Qe2 {[%clk 0:02:55]}  e5 {[%clk 0:02:29]} 10. e4 {[%clk 0:02:48]}  exd4 {[%clk 0:01:24]} 11. Nxd4 {[%clk 0:02:49]}  Bb4 {[%clk 0:01:23]} 12. f3 {[%clk 0:02:41]}  O-O {[%clk 0:01:01]} 13. Be3 {[%clk 0:02:40]}  a5 {[%clk 0:00:57]} 14. Rfd1 {[%clk 0:02:29]}  Rad8 {[%clk 0:00:56]} 15. Rac1 {[%clk 0:02:29]}  Ne5 {[%clk 0:00:52]} 16. Bb3 {[%clk 0:02:27]}  Qe7 {[%clk 0:00:47]} 17. Qf2 {[%clk 0:02:24]}  c5 {[%clk 0:00:42]} 18. Ndb5 {[%clk 0:02:10]}  c4 {[%clk 0:00:43]} 19. Bc2 {[%clk 0:02:09]}  Nd3 {[%clk 0:00:39]} 20. Bxd3 {[%clk 0:02:09]}  Rxd3 {[%clk 0:00:40]} 21. Rxd3 {[%clk 0:02:05]}  cxd3 {[%clk 0:00:41]} 22. Rd1 {[%clk 0:02:05]}  Rd8 {[%clk 0:00:40]} 23. Kh1 {[%clk 0:01:57]}  h6 {[%clk 0:00:29]} 24. Nd4 {[%clk 0:01:48]}  Bxc3 {[%clk 0:00:28]} 25. bxc3 {[%clk 0:01:47]}  Qa3 {[%clk 0:00:27]} 26. h4 {[%clk 0:01:32]}  Qxa4 {[%clk 0:00:25]} 27. Rxd3 {[%clk 0:01:31]}  Qc4 {[%clk 0:00:20]} 28. Qd2 {[%clk 0:01:23]}  Bxe4 {[%clk 0:00:18]} 29. fxe4 {[%clk 0:01:22]}  Nxe4 {[%clk 0:00:19]} 30. Qd1 {[%clk 0:01:19]}  b5 {[%clk 0:00:13]} 31. Bg1 {[%clk 0:01:09]}  Nxc3 {[%clk 0:00:12]} 32. Qc2 {[%clk 0:01:06]}  b4 {[%clk 0:00:12]} 33. Rd2 {[%clk 0:01:02]}  Rd5 {[%clk 0:00:12]} 34. Nf3 {[%clk 0:01:02]}  Rxd2 {[%clk 0:00:12]} 35. Qxd2 {[%clk 0:01:03]}  b3 {[%clk 0:00:12]} 36. Bd4 {[%clk 0:01:02]}  Ne4 {[%clk 0:00:11]} 37. Qxa5 {[%clk 0:01:00]}  Ng3+ {[%clk 0:00:11]} 38. Kh2 {[%clk 0:00:59]}  Nf1+ {[%clk 0:00:11]} 39. Kg1 {[%clk 0:01:00]}  b2 {[%clk 0:00:11]} 40. Qa8+ {[%clk 0:00:57]}  Kh7 {[%clk 0:00:10]} 41. Qe4+ {[%clk 0:00:57]}  g6 {[%clk 0:00:10]} 42. Qe5 {[%clk 0:00:55]}  Qxd4+ {[%clk 0:00:07]} 43. Qxd4 {[%clk 0:00:47]}  b1=Q {[%clk 0:00:07]} 44. Kf2 {[%clk 0:00:47]}  Nh2 {[%clk 0:00:06]} 45. Qf4 {[%clk 0:00:42]}  Qc2+ {[%clk 0:00:06]} 46. Kg3 {[%clk 0:00:42]}  Nf1+ {[%clk 0:00:06]} 47. Kh3 {[%clk 0:00:42]}  Qf2 {[%clk 0:00:05]} 48. Qxf7+ {[%clk 0:00:41]}  Kh8 {[%clk 0:00:05]} 49. Qf8+ {[%clk 0:00:40]}  Kh7 {[%clk 0:00:05]} 50. Ng5+ {[%clk 0:00:41]}  hxg5 {[%clk 0:00:04]} 51. Qxf2 {[%clk 0:00:42]}  gxh4 {[%clk 0:00:03]} 52. Qxf1 {[%clk 0:00:41]} 1-0


[Site "https://www.chess.com"]

[Event "Titled Tuesday Blitz April 25 Late 2023"]
[White "Mickiewicz, Piotr"]
[Black "Simonovic, Miroslav"]
[WhiteFideId "1114891"]
[BlackFideId "919152"]
[WhiteElo "2246"]
[BlackElo "2042"]
[Result "1-0"]
[Round "05"]
[TimeControl "180+2"]
[Date "2023.04.25"]
[WhiteClock "0:02:01"]
[BlackClock "0:00:59"]

1. Nf3 {[%clk 0:03:00]}  c5 {[%clk 0:03:00]} 2. e3 {[%clk 0:03:01]}  Nc6 {[%clk 0:03:00]} 3. Bb5 {[%clk 0:03:00]}  g6 {[%clk 0:03:00]} 4. O-O {[%clk 0:02:59]}  Bg7 {[%clk 0:03:00]} 5. d4 {[%clk 0:02:58]}  cxd4 {[%clk 0:03:00]} 6. exd4 {[%clk 0:02:57]}  d5 {[%clk 0:03:00]} 7. c4 {[%clk 0:02:54]}  Nf6 {[%clk 0:02:56]} 8. Nc3 {[%clk 0:02:50]}  O-O {[%clk 0:02:55]} 9. Ne5 {[%clk 0:02:43]}  Bd7 {[%clk 0:02:17]} 10. Nxd7 {[%clk 0:02:31]}  Qxd7 {[%clk 0:02:14]} 11. c5 {[%clk 0:02:31]}  a6 {[%clk 0:02:09]} 12. Ba4 {[%clk 0:02:28]}  Ne4 {[%clk 0:01:50]} 13. Nxe4 {[%clk 0:02:19]}  dxe4 {[%clk 0:01:50]} 14. d5 {[%clk 0:02:20]}  Rad8 {[%clk 0:01:03]} 15. dxc6 {[%clk 0:02:20]}  Qf5 {[%clk 0:01:03]} 16. Qc2 {[%clk 0:02:10]}  bxc6 {[%clk 0:01:02]} 17. Be3 {[%clk 0:02:09]}  Bd4 {[%clk 0:00:59]} 18. Bxc6 {[%clk 0:02:01]} 1-0


[Site "https://www.chess.com"]

[Event "Titled Tuesday Blitz April 25 Late 2023"]
[White "Harriott, Tyrell"]
[Black "Dahlgren, James Allen"]
[WhiteFideId "2086484"]
[BlackFideId "22256873"]
[WhiteElo "2107"]
[BlackElo "1824"]
[Result "1-0"]
[Round "05"]
[TimeControl "180+2"]
[Date "2023.04.25"]
[WhiteClock "0:00:15"]
[BlackClock "0:00:09"]

1. d4 {[%clk 0:03:00]}  e6 {[%clk 0:02:59]} 2. e3 {[%clk 0:03:01]}  c5 {[%clk 0:03:00]} 3. f4 {[%clk 0:03:00]}  Nf6 {[%clk 0:03:00]} 4. Nf3 {[%clk 0:03:00]}  d5 {[%clk 0:03:01]} 5. c3 {[%clk 0:03:00]}  Nc6 {[%clk 0:03:01]} 6. Bd3 {[%clk 0:03:00]}  Qb6 {[%clk 0:03:01]} 7. O-O {[%clk 0:03:00]}  Ne4 {[%clk 0:03:00]} 8. Nbd2 {[%clk 0:02:56]}  f5 {[%clk 0:02:59]} 9. Bxe4 {[%clk 0:02:53]}  dxe4 {[%clk 0:02:59]} 10. Ne5 {[%clk 0:02:49]}  Nxe5 {[%clk 0:02:59]} 11. fxe5 {[%clk 0:02:47]}  Bd7 {[%clk 0:02:59]} 12. g4 {[%clk 0:02:37]}  O-O-O {[%clk 0:02:49]} 13. gxf5 {[%clk 0:02:31]}  exf5 {[%clk 0:02:50]} 14. a4 {[%clk 0:02:26]}  g5 {[%clk 0:02:50]} 15. Qb3 {[%clk 0:02:22]}  Qxb3 {[%clk 0:02:47]} 16. Nxb3 {[%clk 0:02:21]}  c4 {[%clk 0:02:39]} 17. Nd2 {[%clk 0:02:18]}  Be6 {[%clk 0:02:36]} 18. Rb1 {[%clk 0:02:12]}  Kd7 {[%clk 0:02:18]} 19. b3 {[%clk 0:02:12]}  cxb3 {[%clk 0:02:18]} 20. Nxb3 {[%clk 0:02:12]}  Rc8 {[%clk 0:02:11]} 21. Bd2 {[%clk 0:02:11]}  b6 {[%clk 0:02:00]} 22. Rfc1 {[%clk 0:02:05]}  Bc4 {[%clk 0:01:46]} 23. Re1 {[%clk 0:01:49]}  Be7 {[%clk 0:01:42]} 24. Bc1 {[%clk 0:01:49]}  Ke6 {[%clk 0:01:34]} 25. Na1 {[%clk 0:01:30]}  Kd5 {[%clk 0:01:32]} 26. Nc2 {[%clk 0:01:27]}  Bd3 {[%clk 0:01:30]} 27. Nb4+ {[%clk 0:01:20]}  Kc4 {[%clk 0:01:24]} 28. Nxd3 {[%clk 0:01:13]}  Kxd3 {[%clk 0:01:06]} 29. Bb2 {[%clk 0:01:09]}  f4 {[%clk 0:00:54]} 30. Rbd1+ {[%clk 0:00:58]}  Kc2 {[%clk 0:00:52]} 31. Ba1 {[%clk 0:00:57]}  f3 {[%clk 0:00:50]} 32. Kf2 {[%clk 0:00:43]}  g4 {[%clk 0:00:48]} 33. Kg3 {[%clk 0:00:43]}  h5 {[%clk 0:00:48]} 34. d5 {[%clk 0:00:34]}  Rhg8 {[%clk 0:00:43]} 35. Kf4 {[%clk 0:00:27]}  Rcf8+ {[%clk 0:00:40]} 36. Kxe4 {[%clk 0:00:26]}  f2 {[%clk 0:00:38]} 37. Rf1 {[%clk 0:00:24]}  h4 {[%clk 0:00:36]} 38. Rb1 {[%clk 0:00:21]}  g3 {[%clk 0:00:18]} 39. hxg3 {[%clk 0:00:20]}  hxg3 {[%clk 0:00:19]} 40. Rb2+ {[%clk 0:00:20]}  Kxc3 {[%clk 0:00:15]} 41. Rbxf2+ {[%clk 0:00:20]}  Kb4 {[%clk 0:00:11]} 42. Rxf8 {[%clk 0:00:19]}  Bxf8 {[%clk 0:00:09]} 43. Rg1 {[%clk 0:00:19]}  g2 {[%clk 0:00:10]} 44. Bd4 {[%clk 0:00:18]}  Kxa4 {[%clk 0:00:09]} 45. Kf3 {[%clk 0:00:18]}  Bc5 {[%clk 0:00:09]} 46. d6 {[%clk 0:00:15]}  Bxd4 {[%clk 0:00:07]} 47. exd4 {[%clk 0:00:16]}  b5 {[%clk 0:00:08]} 48. Rxg2 {[%clk 0:00:17]}  Rf8+ {[%clk 0:00:07]} 49. Ke4 {[%clk 0:00:17]}  b4 {[%clk 0:00:08]} 50. Kd5 {[%clk 0:00:17]}  b3 {[%clk 0:00:08]} 51. e6 {[%clk 0:00:18]}  Ka3 {[%clk 0:00:08]} 52. e7 {[%clk 0:00:18]}  Rb8 {[%clk 0:00:09]} 53. d7 {[%clk 0:00:18]}  b2 {[%clk 0:00:09]} 54. Rxb2 {[%clk 0:00:16]}  Kxb2 {[%clk 0:00:09]} 55. d8=Q {[%clk 0:00:15]}  Rb5+ {[%clk 0:00:09]} 56. Kc4 {[%clk 0:00:15]} 1-0


[Site "https://www.chess.com"]

[Event "Titled Tuesday Blitz April 25 Late 2023"]
[White "Capp, Stephen"]
[Black "Luong Phuong Hanh"]
[WhiteFideId "2027089"]
[BlackFideId "12401013"]
[WhiteElo "1920"]
[BlackElo "2081"]
[Result "0-1"]
[Round "05"]
[TimeControl "180+2"]
[Date "2023.04.25"]
[WhiteClock "0:00:15"]
[BlackClock "0:00:20"]

1. e4 {[%clk 0:03:00]}  c5 {[%clk 0:02:59]} 2. Nc3 {[%clk 0:03:00]}  Nc6 {[%clk 0:02:58]} 3. f4 {[%clk 0:03:00]}  e6 {[%clk 0:02:57]} 4. Nf3 {[%clk 0:02:59]}  d5 {[%clk 0:02:57]} 5. Bb5 {[%clk 0:02:58]}  d4 {[%clk 0:02:56]} 6. Bxc6+ {[%clk 0:02:57]}  bxc6 {[%clk 0:02:56]} 7. Nb1 {[%clk 0:02:58]}  Nf6 {[%clk 0:02:56]} 8. d3 {[%clk 0:02:58]}  Be7 {[%clk 0:02:56]} 9. a4 {[%clk 0:02:58]}  O-O {[%clk 0:02:56]} 10. Na3 {[%clk 0:02:58]}  Ba6 {[%clk 0:02:52]} 11. Ne5 {[%clk 0:02:54]}  Qc7 {[%clk 0:02:48]} 12. Nac4 {[%clk 0:02:53]}  Bd6 {[%clk 0:02:46]} 13. Nxd6 {[%clk 0:02:46]}  Qxd6 {[%clk 0:02:47]} 14. O-O {[%clk 0:02:45]}  Qc7 {[%clk 0:02:44]} 15. b3 {[%clk 0:02:45]}  Rab8 {[%clk 0:02:38]} 16. Ba3 {[%clk 0:02:44]}  Qd6 {[%clk 0:02:35]} 17. Qe1 {[%clk 0:02:32]}  Rfc8 {[%clk 0:02:30]} 18. Qa5 {[%clk 0:02:30]}  Bb7 {[%clk 0:02:27]} 19. Bxc5 {[%clk 0:02:24]}  Qc7 {[%clk 0:02:26]} 20. Qxc7 {[%clk 0:02:20]}  Rxc7 {[%clk 0:02:27]} 21. Bxa7 {[%clk 0:02:19]}  Ra8 {[%clk 0:02:24]} 22. Bxd4 {[%clk 0:02:19]}  c5 {[%clk 0:02:22]} 23. Bc3 {[%clk 0:02:13]}  Ne8 {[%clk 0:02:22]} 24. Nc4 {[%clk 0:02:08]}  f6 {[%clk 0:02:16]} 25. a5 {[%clk 0:02:08]}  Ba6 {[%clk 0:02:15]} 26. Nb6 {[%clk 0:02:07]}  Rd8 {[%clk 0:02:14]} 27. Rf3 {[%clk 0:01:57]}  Nd6 {[%clk 0:02:12]} 28. Rg3 {[%clk 0:01:56]}  Kf7 {[%clk 0:02:10]} 29. h4 {[%clk 0:01:52]}  Nb5 {[%clk 0:02:09]} 30. Bb2 {[%clk 0:01:49]}  h5 {[%clk 0:01:50]} 31. Rf1 {[%clk 0:01:40]}  Nd6 {[%clk 0:01:44]} 32. f5 {[%clk 0:01:34]}  exf5 {[%clk 0:01:40]} 33. Nd5 {[%clk 0:01:34]}  Rb7 {[%clk 0:01:37]} 34. exf5 {[%clk 0:01:30]}  c4 {[%clk 0:01:36]} 35. dxc4 {[%clk 0:01:28]}  Nxc4 {[%clk 0:01:36]} 36. Bxf6 {[%clk 0:01:10]}  gxf6 {[%clk 0:01:25]} 37. bxc4 {[%clk 0:01:10]}  Bxc4 {[%clk 0:01:24]} 38. Nb6 {[%clk 0:00:58]}  Bxf1 {[%clk 0:01:23]} 39. Kxf1 {[%clk 0:00:59]}  Rd1+ {[%clk 0:01:11]} 40. Ke2 {[%clk 0:00:58]}  Ra1 {[%clk 0:01:10]} 41. Nc4 {[%clk 0:00:52]}  Re7+ {[%clk 0:01:06]} 42. Kd3 {[%clk 0:00:52]}  Rd7+ {[%clk 0:01:05]} 43. Kc3 {[%clk 0:00:51]}  Rc7 {[%clk 0:01:04]} 44. Kb3 {[%clk 0:00:49]}  Rb1+ {[%clk 0:01:01]} 45. Ka2 {[%clk 0:00:43]}  Rf1 {[%clk 0:00:59]} 46. Nb6 {[%clk 0:00:36]}  Rxf5 {[%clk 0:00:54]} 47. Ra3 {[%clk 0:00:34]}  Rxc2+ {[%clk 0:00:53]} 48. Kb1 {[%clk 0:00:33]}  Rxg2 {[%clk 0:00:51]} 49. Rc3 {[%clk 0:00:31]}  Rxa5 {[%clk 0:00:49]} 50. Nc4 {[%clk 0:00:29]}  Rd5 {[%clk 0:00:40]} 51. Ne3 {[%clk 0:00:28]}  Rb5+ {[%clk 0:00:39]} 52. Kc1 {[%clk 0:00:26]}  Rh2 {[%clk 0:00:35]} 53. Rc7+ {[%clk 0:00:24]}  Kg6 {[%clk 0:00:35]} 54. Rc6 {[%clk 0:00:20]}  Rxh4 {[%clk 0:00:33]} 55. Nc4 {[%clk 0:00:18]}  Rf4 {[%clk 0:00:25]} 56. Nd6 {[%clk 0:00:17]}  Rd5 {[%clk 0:00:22]} 57. Ne8 {[%clk 0:00:17]}  h4 {[%clk 0:00:21]} 58. Nc7 {[%clk 0:00:16]}  Rdd4 {[%clk 0:00:19]} 59. Ne6 {[%clk 0:00:16]}  Rc4+ {[%clk 0:00:19]} 60. Rxc4 {[%clk 0:00:15]}  Rxc4+ {[%clk 0:00:20]} 61. Kd2 {[%clk 0:00:16]}  h3 {[%clk 0:00:21]} 62. Nf8+ {[%clk 0:00:14]}  Kf5 {[%clk 0:00:20]} 63. Nd7 {[%clk 0:00:15]}  h2 {[%clk 0:00:20]} 0-1


[Site "https://www.chess.com"]